Cogmind - Beta 15 @@@ ROGUE MODE // 2025.05.11 @ 19:36:11 Player: Quartz Result: Destroyed by BC-D1G(R) with Subdweller Beam Cannon Performance ------------- Evolutions (0) 0 Regions Visited (2) 400 Robots Destroyed (27) 135 Value Destroyed (824) 824 Prototype IDs (0) 0 Alien Tech Used (0) 0 Bonus (0) 0 TOTAL SCORE: 1359 Bonus ------- None Cogmind --------- Core Integrity 0/250 Matter 112/300 Energy 100/100 System Corruption 0% Temperature Warm (105) Movement Core (1450) Ox28 Location -10/Subcaves Parts ------- > --- POWER (1) -------- (None) > --- PROPULSION (2) --- (None) > --- UTILITY (2) ------ Huge Storage Unit Improved Targeting Computer > --- WEAPON (2) ------- Autogun Autogun > --- INVENTORY (25) --- Improved Treads Subdweller Monowheel Large Matter Pod (109) Machine Analyzer Improved Targeting Computer Improved Targeting Computer Subdweller Machine Gun Subdweller Machine Gun Rocket Launcher Subdweller Shrapnel Launcher SUBCON Basin (Full) Peak State ------------ > --- POWER ------------ Ion Engine > --- PROPULSION ------- Improved Treads Improved Treads > --- UTILITY ---------- Huge Storage Unit Improved Targeting Computer > --- WEAPON ----------- Autogun Autogun > --- INVENTORY -------- Improved Treads Subdweller Monowheel Large Matter Pod Machine Analyzer Improved Targeting Computer Improved Targeting Computer Subdweller Machine Gun Subdweller Machine Gun Rocket Launcher Subdweller Shrapnel Launcher SUBCON Basin [Rating: 32] Favorites ----------- Power Ion Engine Engine Ion Engine Power Core Light Nuclear Core Propulsion Improved Treads Treads Improved Treads Utility Improved Targeting Computer Storage Large Storage Unit Processor Improved Targeting Computer Weapon Autogun Ballistic Gun Autogun Launcher Grenade Launcher Build | -11 -10 -10 ------- Run | Yrd Mat Sub Slots Evolved . | . . . Power . | . . . Propulsion . | . . . Utility . | . . . Weapon . | . . . Parts Attached 21 | 6 7 8 Power 2 | . 1 1 Engine 1 | . . 1 Core 1 | . 1 . Reactor . | . . . Propulsion 5 | 2 1 2 Treads 5 | 2 1 2 Leg . | . . . Wheel . | . . . Hover . | . . . Flight . | . . . Utility 4 | 1 2 1 Device . | . . . Storage 3 | 1 1 1 Processor 1 | . 1 . Hackware . | . . . Protection . | . . . Artifact . | . . . Weapon 10 | 3 3 4 Energy Gun . | . . . Energy Cannon . | . . . Ballistic Gun 8 | 3 2 3 Ballistic Cannon . | . . . Launcher 2 | . 1 1 Special Weapon . | . . . Impact Weapon . | . . . Slashing Weapon . | . . . Piercing Weapon . | . . . Special Melee Weapon . | . . . Unidentified Prototypes . | . . . Parts Lost 6 | . . 6 Power 2 | . . 2 Propulsion 3 | . . 3 Utility . | . . . Weapon 1 | . . 1 Highest Loss Streak 3 | . . 3 To Critical Strikes . | . . . Average Backups 9 | 1 6 13 Power . | 1 1 . Propulsion 1 | . 1 2 Utility 4 | . 2 6 Weapon 2 | . 1 4 Tool/Special . | . . . Unused Backups 13 | . 1 12 Power 1 | . 1 . Propulsion 2 | . . 2 Utility 7 | . . 7 Weapon 3 | . . 3 Tool/Special . | . . . Average Slot Usage (%) 93 | . 87 99 Engine 6 | . . 12 Core 5 | . 11 1 Treads 27 | . 28 27 Storage 14 | . 14 14 Processor 9 | . 4 14 Ballistic Gun 26 | . 26 27 Launcher 1 | . 1 . Peak Build Rating 32 | 5 15 32 Average Rating 14 | 4 9 19 On Entrance 6 | . 5 15 Naked Turns . | . . . Heaviest Build 91 | 9 31 91 Greatest Support 46 | 40 43 46 Greatest Overweight (x) 1 | . . 1 Average Overweight (x) . | . . . Largest Inventory Capacity 25 | 8 15 25 Average Capacity 14 | 7 10 18 Most Carried 25 | 5 15 25 Average Carried 12 | 1 6 17 Final Capacity 25 | 8 15 25 Final Carried 25 | 2 14 25 Class Distribution -------------------- 100% | Mutant Dominant Class ---------------- Mutant | -10/Materials Mutant | -10/Subcaves Resources | -11 -10 -10 ----------- Run | Yrd Mat Sub Matter Collected 1009 | 278 394 337 Remotely . | . . . Salvage Created 943 | 94 477 372 Parts 53 | 1 28 24 Haulers Intercepted . | . . . Recyclers Shooed . | . . . Parts Field Recycled . | . . . Retrieved Matter . | . . . Parts Self-Destructed 6 | . . 6 Prevented . | . . . Kills | -11 -10 -10 ------- Run | Yrd Mat Sub Combat Hostiles Destroyed 20 | . 11 9 Guns 15 | . 6 9 AOE 5 | . 5 . Classes Destroyed 7 | 1 4 2 Builder 1 | . 1 . Recycler 2 | 1 1 . Operator 2 | . 2 . Watcher 2 | . 2 . Swarmer 3 | . . 3 Grunt 11 | . 11 . Subdweller 6 | . . 6 Best Kill Streak 5 | 1 5 3 Combat Bots Only 4 | . 4 3 Max Kills in Single Turn 2 | 1 2 1 Gunslinging . | . . . Exploded 2 | . 2 . Melee . | . . . Uniques/NPCs Destroyed . | . . . Combat | -11 -10 -10 -------- Run | Yrd Mat Sub Hostile Shots Fired 109 | . 50 59 Missed 21 | . 11 10 Hits 88 | . 39 49 Projectile 88 | . 39 49 Critical Strikes 3 | . 1 2 Damage Taken 1690 | . 477 1213 Core 264 | . 66 198 Absorbed by Shields . | . . . Core Remaining (%) 100 | 100 . . Volleys Fired 93 | 3 46 44 Largest 2 | 2 2 2 Hottest 50 | 40 50 46 Shots Fired 163 | 6 72 85 Gun 148 | 6 60 82 Cannon . | . . . Launcher 15 | . 12 3 Special . | . . . Kinetic 148 | 6 60 82 Thermal . | . . . Explosive 15 | . 12 3 Electromagnetic . | . . . Robot Hit Streak 17 | 5 17 16 Robot Miss Streak 4 | . 4 2 Penetration Max . | . . . Secondary Targets . | . . . Shots Hit Robots 112 | 5 42 65 Core Hits 45 | 2 28 15 Critical Kills . | . . . Critical Parts Destroyed 1 | . 1 . Critical Strikes 1 | . 1 . Destroy 1 | . 1 . Melee Attacks . | . . . Impact . | . . . Slashing . | . . . Piercing . | . . . Sneak Attacks . | . . . Combat Hostiles . | . . . Follow-up Attacks . | . . . Damage Inflicted 1983 | 61 1194 728 Guns 1352 | 61 563 728 Cannons . | . . . Explosions 627 | . 627 . Melee . | . . . Ramming 4 | . 4 . Kinetic 1352 | 61 563 728 Thermal 351 | . 351 . Explosive 276 | . 276 . Electromagnetic . | . . . Impact . | . . . Slashing . | . . . Piercing . | . . . Highest Corruption . | . . . Average Corruption . | . . . Corruption Purged . | . . . Corruption Blocked . | . . . Overload Shots . | . . . Overflow Damage 75 | . 75 . Projectiles . | . . . Explosions 75 | . 75 . Melee . | . . . Knockbacks . | . . . Impact . | . . . Kinetic . | . . . Secondary . | . . . Self-Inflicted Damage . | . . . Shots . | . . . Rammed 1 | . 1 . Targets Rammed 2 | . 2 . Kicked . | . . . Crushed 1 | . 1 . Highest Temperature 337 | . 38 337 Average Temperature 80 | . 14 203 Received Heat Transfer 1103 | . 285 818 Siege Activations . | . . . Martial Activations . | . . . Shielding Activations . | . . . Robots Disrupted . | . . . Combat Hostiles . | . . . Robots Corrupted . | . . . Combat Hostiles . | . . . Parts Fried . | . . . Impact Corruptions . | . . . Robots Melted . | . . . Combat Hostiles . | . . . Parts Melted . | . . . Heat Transferred 200 | . 200 . Parts Sabotaged . | . . . Parts Stolen . | . . . Parts Stripped . | . . . Power Chain Reactions . | . . . Alert | -11 -10 -10 ------- Run | Yrd Mat Sub Maximum Alert Level 1 | . 1 . Low Security (%) 63 | 100 60 . Level 1 36 | . 39 . Level 2 . | . . . Level 3 . | . . . Level 4 . | . . . Level 5 . | . . . High Security . | . . . Max Security . | . . . Peak Influence 326 | 5 326 . Initial . | . . . Average 106 | . 114 . Influence Increases 587 | 5 512 70 Destroy 0b10 Robot/C 280 | . 220 60 Destroy 0b10 Robot/NC 35 | 5 30 . Destroy Leader 54 | . 44 10 Successful Hack 21 | . 21 . Disable Machine 90 | . 90 . Destroy Structure 47 | . 47 . Lose Combat Pursuer 60 | . 60 . Influence Decreases 587 | 5 238 344 Entered New Map 132 | . . 132 Time Decay 445 | 5 238 202 Lost Part 10 | . . 10 Squads Dispatched 2 | . 2 . Investigation 1 | . 1 . Extermination . | . . . Reinforcement 1 | . 1 . Assault . | . . . Garrison . | . . . Intercept . | . . . Searches Triggered . | . . . Construction Impeded . | . . . Haulers Reinforced . | . . . Active Scanning Responses . | . . . Cargo Convoy Interrupts . | . . . Stealth | -11 -10 -10 --------- Run | Yrd Mat Sub Distress Signals 2 | . 2 . Communications Jammed . | . . . Distress Signals . | . . . Times Spotted 33 | . 23 10 Peak Tracking Total 3 | . 3 3 Tactical Retreats 4 | . 4 . Traps | -11 -10 -10 ------- Run | Yrd Mat Sub Traps Triggered 2 | . . 2 Indirectly . | . . . Trap Hack Attempts . | . . . Triggered . | . . . Disarmed . | . . . Reprogrammed . | . . . Reused . | . . . Traps Extracted . | . . . Installed . | . . . Triggered . | . . . Machines | -11 -10 -10 ---------- Run | Yrd Mat Sub Machines Disabled 7 | . 7 . Max in Single Turn 5 | . 5 . Machines Repaired . | . . . Machines Dismantled . | . . . Machines Sabotaged . | . . . Overloaded Fab Kills . | . . . Hacking | -11 -10 -10 --------- Run | Yrd Mat Sub Machines Accessed 4 | . 2 2 Terminals 2 | . 2 . Fabricators . | . . . Repair Stations . | . . . Recycling Units . | . . . Scanalyzers . | . . . Garrison Access . | . . . Total Hacks 10 | . 7 3 Successful 8 | . 5 3 Failed 2 | . 2 . Catastrophic . | . . . Database Lockouts . | . . . Manual 5 | . 5 . Terminals 7 | . 7 . Fabricators . | . . . Repair Stations . | . . . Recycling Units . | . . . Scanalyzers . | . . . Garrison Access . | . . . Terminal Hacks 6 | . 3 3 Record 1 | . . 1 Robot Analysis 2 | . 2 . Open Door 1 | . . 1 Hauler Manifests 1 | . 1 . Release Object 1 | . . 1 Fabricator Hacks . | . . . Repair Station Hacks . | . . . Recycling Unit Hacks . | . . . Scanalyzer . | . . . Garrison Access Hacks . | . . . Unauthorized Hacks 2 | . 2 . Terminals 2 | . 2 . Botnet 2 | . 2 . Fabricators . | . . . Repair Stations . | . . . Recycling Units . | . . . Scanalyzers . | . . . Garrison Access . | . . . Data Cores Recovered 1 | . 1 . Used . | . . . Hacking Detections 2 | . 2 . Full Trace Events 1 | . 1 . Feedback Events . | . . . Feedback Blocked . | . . . Robot Schematics Acquired . | . . . Robots Built . | . . . Authchips . | . . . Time . | . . . Total Robot Build Rating . | . . . Part Schematics Acquired . | . . . Parts Built . | . . . Authchips . | . . . Time . | . . . Total Part Build Rating . | . . . Parts Repaired . | . . . Time . | . . . Parts Recycled . | . . . Recycled Matter . | . . . Retrieved Matter . | . . . Retrieved Components . | . . . Parts Scanalyzed . | . . . Part Schematics Acquired . | . . . Parts Damaged . | . . . Bothacking | -11 -10 -10 ------------ Run | Yrd Mat Sub Used RIF Installer . | . . . Robots Hacked . | . . . Non-combat . | . . . Combat . | . . . Robot Hacks Applied . | . . . Relay Couplers Released . | . . . Fabnet Peak Effective % . | . . . Robots Rewired . | . . . Allies Hacked . | . . . Hacks Repelled . | . . . Allies | -11 -10 -10 -------- Run | Yrd Mat Sub Total Allies . | . . . Largest Group . | . . . Highest-Rated Group . | . . . Highest-Rated Ally . | . . . Total Orders . | . . . Ally Attacks . | . . . Total Damage . | . . . Kills . | . . . Allies Corrupted . | . . . Allies Melted . | . . . Intel | -11 -10 -10 ------- Run | Yrd Mat Sub Active Infowar (turns) . | . . . Robot Analysis Total 2 | . 2 . Derelict Logs Recovered . | . . . Drone Launches . | . . . Drone Recoveries . | . . . Exploration | -11 -10 -10 ------------- Run | Yrd Mat Sub Turns Passed 3313 | 112 1475 1726 Spaces Moved 1577 | 73 625 879 Core 25 | 25 . . Treads 1552 | 48 625 879 Legs . | . . . Wheels . | . . . Hover . | . . . Flight . | . . . Fastest Speed 50 | 50 160 160 Average Speed 168 | 122 160 178 Slowest Speed 240 | 160 160 240 Overloaded Moves . | . . . Propulsion Burnouts . | . . . Robots Hopped . | . . . Potential Cave-ins . | . . . Cave-ins Triggered . | . . . Exploration Rate (%) 46 | 6 76 58 Regions Visited 2 Branch Regions 1 Pre-discovered Areas . | . . . Known Exits Taken . | . . . Unknown Exits Taken 2 | 1 1 . Scrap Searched 3 | . . 3 Spaces Dug . | . . . Terrain Destroyed 78 | . 52 26 Melee . | . . . Projectile . | . . . AOE 78 | . 52 26 Terrain Rammed . | . . . Walls Destroyed . | . . . Machines Disabled . | . . . Actions | -11 -10 -10 --------- Run | Yrd Mat Sub Total 2085 | 90 1029 966 Wait 345 | . 326 19 Move 1575 | 72 624 879 Hop . | . . . Pick Up 33 | 8 17 8 Fast Attach 3 | . 3 . Attach 9 | 5 1 3 Detach . | . . . Swap 10 | 1 4 5 Drop 15 | 1 6 8 Fire 93 | 3 46 44 Melee . | . . . Ram . | . . . Kick . | . . . Crush 2 | . 2 . Escape Stasis . | . . . Rewire . | . . . Trap . | . . . Miscellaneous . | . . . Route ------- -11/Scrapyard -10/Materials (discovered 5 exits: [*Mat x2] / [*Min x2] / *Sub) -10/Subcaves History --------- Turn | Location | Event 4 | -11/Scrapyard | Discovered new exit (range 16) 113 | -11/Scrapyard | Entered Materials 304 | -10/Materials | Build established: Mutant 349 | -10/Materials | Discovered new exit (range 8) 429 | -10/Materials | Discovered new exit (range 16) 636 | -10/Materials | Discovered new exit (range 8) 654 | -10/Materials | Discovered new exit (range 12) 1026 | -10/Materials | Discovered new exit (range 14) 1588 | -10/Materials | Entered Subcaves 1589 | -10/Subcaves | Approached by a straggling Scientist 1618 | -10/Subcaves | Shifting Twisted Machinery released Shrapnel Trap 2798 | -10/Subcaves | Found SUBCON Basin 3277 | -10/Subcaves | Core integrity fell below 50% 3295 | -10/Subcaves | Core integrity fell below 20% 3314 | -10/Subcaves | Destroyed by BC-D1G(R) with Subdweller Beam Cannon Last Messages --------------- has been achieved, there is a high probability that sudden introduction into previously unexposed areas could cause more extreme side effects. Take all precautions to prevent this from happening. >>Release Inventory Accessing inventory controls... Collection purity confirmed 100%... Ejecting SUBCON Basin... Delivery behind schedule, handle with care! 02792_ Dropped Field Recycling Unit. 02794_ Dropped Imp. Targeting Computer. 02796_ Dropped Imp. Treads. 02797_ Dropped Lrg. Storage Unit. 02797_ Dropped Rocket Launcher. 02798_ Acquired SUBCON Basin. 03284_ 5I-TLK(R) destroyed. 03292_ Critical hit (Meltdown: +290). 03302_ Critical hit (Meltdown: +270). 03306_ Imp. Treads destroyed. 03308_ Ion Engine destroyed. 03314_ Imp. Treads destroyed. Map ----- +----------------------------------------------------+ | ?????????????????????????????????????????????????? | | ?????????????????????????????????????????????????? | | ?????????????????????????????????????????????????? | | ?????????????????????????????????????????????????? | | ?????????????????????????????????????????????????? | | ?????????????????????????????????????????????????? | | ?????????????????????????????????????????????????? | | ?????????????????????????????????????????????????? | | ?????????????????????????????????????????????????? | | ?????????????????????????????????????????????????? | | ?????????????????????????????????????????????????? | | ?????????????????????????????????????????????????? | | ?????????????????????????????????????????????????? | | ?????????????????????????????????????????????????? | | ?????????????????????????????????????????????????? | | ?????????????????????????????????????????????????? | | ?????????????????????????????????????????????????? | | ?????????????????????###?????##??????????????????? | | ?????????????????????# ????# #??????????????????? | | ????????????????????## #?## #?????????#????????? | | ???????????????????"""""### ###???## ???????? | | ??????????????????""""""*! ### ???????? | | ?????????????????"""""""%=! #????????? | | ?????????????????"""""""&[ #???????????? | | ??????????????????#""""R& #????????????????? | | ??????????????????# @ ##????????????????? | | ??????????????????## ##?????????????????? | | ???????????????????# ##??????????????????? | | ??????????????????# ## ##???????????????????? | | ????????????????# #?# #????????????????????? | | ???????????????# #??# ##??????###??????????? | | ???????????????# #???## #?###??# ##?????????? | | ???????????????## #????# #?# ### #?????????? | | ???????????????# ?????## #### ##????????? | | ???????????????## ??##?# ## #????????? | | ???????????????## ### ### ###### #????????? | | ?????????????### ## ##????## #######??? | | ????????????## ##????# ## #??? | | ????????????# # ###### & ## ##?? | | ????????????# ## ## # & ### | | ????????????## ## %& # | | ?????????????### ## #### ## | | ???????????????###??#### #####??# ##### | | ?????????????##???????## ##?????# #???# | | ?????????????# #??##### ##?????# ???# | | ????????????? #?# #??????## ??# | | ????????????#? ## ## ##???????### ## | | ????????????# ####=####??????????## ## | | ????????????## #??#% #??????????????#### | | ?????????????## ##?### ##??? #????????# | +----------------------------------------------------+ Best States ------------- Heat Dissipation 25 Energy Generation 14 Energy Capacity 250 Matter Stores 300 Matter Capacity 300 Sight Range 16 Terrain Scan Density 10 Evasion (%) 40 Targeting Accuracy 6 Recoil Reduction 2 Item Schematics ----------------- None Robot Schematics ------------------ None Fabricated ------------ Nothing Repaired ---------- Nothing Alien Tech Used ----------------- None Achievements -------------- None Challenges ------------ None Game ------ Seed FusionFrostMinigun Manual? 0 Play Time 00:16:52 Cumulative 42.8 hours Start 2025.05.11 @ 17:26:42 End 2025.05.11 @ 19:36:11 Sessions 1 Manual Loads 0 Difficulty Rogue Special Mode None Game No. 70 Rogue 70 Adventurer 0 Explorer 0 Win Type - Total 0 Types 0/0/0/0/0/0/0/0/0/0 Lore% 24 Gallery% 26 Achievement% 26 Wizard Run 0 Options --------- Layout 0 ASCII 0 Keyboard 0 Movement Arrows Keybinds 0 Fullscreen 1 Font 18/Smallcaps Map View 76x50 Zoom Use 0% Tactical HUD 1 Map Filters NONE Filters NONE Steam 1 RUN: e74c2d79-d4db-4374-96d1-56f71cc9377b